fUSD/lending_fUSD_20260123
["ID","MTS","AMOUNT","RATE_DAILY","PERIOD"]
[403138361,1769189432178,-280.15017318,0.00016245,2]
[403138362,1769189432187,-250.0,0.0001628,2]
[403138363,1769189432196,-1000.0,0.00016314,2]
[403138364,1769189432206,-166.66,0.0001636,2]
[403138365,1769189432216,-880.93757309,0.00016373,2]
[403138366,1769189432227,-1545.00242691,0.00016373,2]
[403138367,1769189432238,-158.41819238,0.00016438,2]
[403138368,1769189432247,-500.0,0.00016438,2]
[403138369,1769189432257,-500.0,0.00016438,2]
[403138370,1769189432266,-500.0,0.00016438,2]
[403138371,1769189432276,-500.0,0.00016438,2]
[403138372,1769189432289,-500.0,0.00016438,2]
[403138373,1769189432299,-268.71102424,0.00016438,2]
[403138374,1769189432308,-500.0,0.00016438,2]
[403138375,1769189432318,-500.0,0.00016438,2]
[403138376,1769189432327,-500.0,0.00016438,2]
[403138377,1769189432336,-1000.0,0.00016438,2]
[403138378,1769189432346,-153.30878244,0.00016438,2]
[403138379,1769189432355,-165.16,0.0001644,2]
[403138380,1769189432365,-4703.85680592,0.00016478,2]
[403138381,1769189432374,-500.0,0.000165,3]
[403138382,1769189432385,-189.0,0.00016521,2]
[403138383,1769189432395,-246.33177937,0.00016567,2]
[403138384,1769189432405,-23291.873974,0.00016623,2]
[403138385,1769189432415,-318.57,0.0001666,2]
[403138386,1769189432425,-166.66,0.00016684,2]
[403138387,1769189432435,-836.0,0.0001672,2]
[403138388,1769189432444,-1188.8939297,0.00016826,2]
[403138389,1769189432454,-4703.85680592,0.00016833,2]
[403138390,1769189432464,-246.33177937,0.000169,2]
[403138391,1769189432473,-1503.31991108,0.000169,2]
[403138392,1769189432486,-250.0,0.00017,2]
[403138393,1769189432497,-500.0,0.00017,3]
[403138394,1769189432507,-166.66,0.00017008,2]
[403138395,1769189432517,-151.0,0.00017099,2]
[403138396,1769189432526,-500.0,0.00017099,2]
[403138397,1769189432536,-500.0,0.00017099,2]
[403138398,1769189432546,-500.0,0.00017099,2]
[403138399,1769189432555,-500.0,0.00017099,2]
[403138400,1769189432566,-500.0,0.00017099,2]
[403138401,1769189432576,-500.0,0.00017099,2]
[403138402,1769189432586,-500.0,0.00017099,2]
[403138403,1769189432595,-500.0,0.00017099,2]
[403138404,1769189432604,-500.0,0.00017099,2]
[403138405,1769189432614,-500.0,0.00017099,2]
[403138406,1769189432624,-500.0,0.00017099,2]
[403138407,1769189432638,-250.0,0.00017099,2]
[403138408,1769189432648,-500.0,0.00017099,2]
[403138409,1769189432658,-250.0,0.00017099,2]
[403138410,1769189432667,-500.0,0.00017099,2]
[403138411,1769189432681,-2468.0,0.00017099,2]
[403138412,1769189432690,-250.0,0.00017099,2]
[403138413,1769189432700,-250.0,0.00017099,2]
[403138414,1769189432710,-187.78006526,0.00017099,2]
[403138415,1769189432720,-322.6107,0.00017099,2]
[403138416,1769189432730,-151.0,0.00017099,2]
[403138417,1769189432739,-151.0,0.00017099,2]
[403138418,1769189432749,-250.0,0.00017099,2]
[403138419,1769189432759,-151.0,0.00017099,2]
[403138420,1769189432769,-264.80726466,0.00017099,2]
[403138421,1769189432779,-151.0,0.00017099,2]
[403138422,1769189432788,-151.0,0.00017099,2]
[403138423,1769189432799,-151.0,0.00017099,2]
[403138424,1769189432809,-151.0,0.00017099,2]
[403138425,1769189432818,-151.0,0.00017099,2]
[403138426,1769189432828,-500.0,0.00017099,2]
[403138427,1769189432837,-151.0,0.00017099,2]
[403138428,1769189432846,-500.0,0.00017099,2]
[403138429,1769189432856,-151.0,0.00017099,2]
[403138430,1769189432866,-500.0,0.00017099,2]
[403138431,1769189432883,-151.0,0.00017099,2]
[403138432,1769189432893,-500.0,0.00017099,2]
[403138433,1769189432902,-500.0,0.00017099,2]
[403138434,1769189432912,-500.0,0.00017099,2]
[403138435,1769189432922,-500.0,0.00017099,2]
[403138436,1769189432932,-500.0,0.00017099,2]
[403138437,1769189432941,-500.0,0.00017099,2]
[403138438,1769189432951,-500.0,0.00017099,2]
[403138439,1769189432960,-500.0,0.00017099,2]
[403138440,1769189432970,-500.0,0.00017099,2]
[403138441,1769189432979,-500.0,0.00017099,2]
[403138442,1769189432989,-500.0,0.00017099,2]
[403138443,1769189432998,-500.0,0.00017099,2]
[403138444,1769189433008,-500.0,0.00017099,2]
[403138445,1769189433017,-500.0,0.00017099,2]
[403138446,1769189433027,-500.0,0.00017099,2]
[403138447,1769189433036,-250.0,0.00017099,2]
[403138448,1769189433046,-500.0,0.00017099,2]
[403138449,1769189433055,-250.0,0.00017099,2]
[403138450,1769189433067,-500.0,0.00017099,2]
[403138451,1769189433077,-250.0,0.00017099,2]
[403138452,1769189433087,-500.0,0.00017099,2]
[403138453,1769189433096,-250.0,0.00017099,2]
[403138454,1769189433106,-500.0,0.00017099,2]
[403138455,1769189433115,-250.0,0.00017099,2]
[403138456,1769189433126,-250.0,0.00017099,2]
[403138457,1769189433139,-250.0,0.00017099,2]
[403138458,1769189433149,-250.0,0.00017099,2]
[403138459,1769189433160,-250.0,0.00017099,2]
[403138460,1769189433172,-250.0,0.00017099,2]
[403138461,1769189433183,-250.0,0.00017099,2]
[403138462,1769189433196,-4121.84,0.00017099,2]
[403138463,1769189433206,-19143.5,0.00017119,2]
[403138464,1769189433215,-4703.85680592,0.00017189,2]
[403138465,1769189433226,-182.47,0.00017195,2]
[403138466,1769189433236,-246.33177937,0.00017233,2]
[403138467,1769189433246,-920.71,0.00017241,2]
[403138468,1769189433255,-158.25396366,0.00017389,2]
[403138469,1769189433265,-318.57,0.00017454,2]
[403138470,1769189433275,-190.6,0.0001754,2]
[403138471,1769189433285,-4703.85680592,0.00017544,2]
[403138472,1769189433294,-246.33177937,0.00017567,2]
[403138473,1769189433304,-208.03774045,0.0001764,2]
[403138474,1769189433314,-1678.0,0.00017654,2]
[403138475,1769189433324,-150.0,0.00017699,2]
[403138476,1769189433333,-214.36277185,0.00017699,2]
[403138477,1769189433343,-150.0,0.00017699,2]
[403138478,1769189433354,-150.0,0.00017699,2]
[403138479,1769189433363,-150.0,0.00017699,2]
[403138480,1769189433373,-1751.30830591,0.0001773,2]
[403138481,1769189433386,-150.0,0.00017752,2]
[403138482,1769189433395,-150.0,0.00017754,2]
[403138483,1769189433405,-150.0,0.00017754,2]
[403138484,1769189433415,-150.0,0.00017754,2]
[403138485,1769189433425,-37928.0,0.000178,2]
[403138486,1769189433435,-200.0,0.00017809,2]
[403138487,1769189433446,-200.0,0.00017809,2]
[403138488,1769189433456,-200.0,0.00017809,2]
[403138489,1769189433466,-167.48186,0.0001782,2]
[403138490,1769189433475,-167.48185,0.0001782,2]
[403138491,1769189433486,-1678.0,0.00017837,2]
[403138492,1769189433495,-243.875,0.00017851,2]
[403138493,1769189433506,-2382.103,0.00017851,2]
[403138494,1769189433516,-246.33177937,0.000179,2]
[403138495,1769189433526,-157.10445278,0.000179,2]
[403138496,1769189433535,-4703.85680592,0.000179,2]
[403138497,1769189433545,-514.09640792,0.000179,2]
[403138498,1769189433559,-5521.16692548,0.000179,2]
[403138499,1769189433568,-1539.6553389,0.000179,2]
[403138500,1769189433578,-500.0,0.000179,2]
[403138501,1769189433587,-500.0,0.000179,2]
[403138502,1769189433597,-500.0,0.000179,2]
[403138503,1769189433607,-500.0,0.000179,2]
[403138504,1769189433617,-500.0,0.000179,2]
[403138505,1769189433627,-500.0,0.000179,2]
[403138506,1769189433640,-500.0,0.000179,2]
[403138507,1769189433649,-500.0,0.000179,2]
[403138508,1769189433659,-500.0,0.000179,2]
[403138509,1769189433669,-500.0,0.000179,2]
[403138510,1769189433678,-500.0,0.000179,2]
[403138511,1769189433688,-500.0,0.000179,2]
[403138512,1769189433697,-500.0,0.000179,2]
[403138513,1769189433707,-500.0,0.000179,2]
[403138514,1769189433717,-500.0,0.000179,2]
[403138515,1769189433727,-500.0,0.000179,2]
[403138516,1769189433737,-500.0,0.000179,2]
[403138517,1769189433747,-500.0,0.000179,2]
[403138518,1769189433756,-500.0,0.000179,2]
[403138519,1769189433766,-500.0,0.000179,2]
[403138520,1769189433776,-500.0,0.000179,2]
[403138521,1769189433785,-500.0,0.000179,2]
[403138522,1769189433795,-500.0,0.000179,2]
[403138523,1769189433805,-876.427,0.00017926,2]
[403138524,1769189433815,-151.0,0.00017933,2]
[403138525,1769189433825,-151.0,0.00017933,2]
[403138526,1769189433835,-200.0,0.00017973,2]
[403138527,1769189433845,-151.0,0.00017997,2]
[403138528,1769189433855,-500.0,0.00017999,2]
[403138529,1769189433864,-500.0,0.00017999,2]
[403138530,1769189433874,-185.65996236,0.00017999,2]
[403138531,1769189433886,-300.0,0.00017999,2]
[403138532,1769189433895,-333.85374432,0.00017999,2]
[403138533,1769189433905,-746.19774491,0.00018,2]
[403138534,1769189433914,-30081.09496925,0.00018,2]
[403138536,1769189437514,-1428.96368315,0.00018,2]
[403138537,1769189437721,-3803641.76756442,0.00018,2]
[403138542,1769189439563,-4678.72038961,0.00018,2]
[403138543,1769189439575,-2397.92403437,0.00018,2]
[403138544,1769189439618,-295.37953324,0.00018,2]
[403138545,1769189439629,-320.1372482,0.00018,2]
[403138546,1769189439644,-419998.9671028,0.00018,2]
[403138547,1769189439654,-600.0,0.00018,2]
[403138548,1769189439665,-217357.54400106,0.00018,2]
[403138549,1769189439686,-1000.0001,0.00018,2]
[403138561,1769189442859,-503.16719895,0.00014773,2]
[403138562,1769189442870,-28996.56859765,0.00018,2]
[403138563,1769189442882,-334.77517578,0.00018,2]
[403138564,1769189442894,-2024.05050554,0.00018,2]
[403138565,1769189442921,-1760.12755376,0.00018,2]
[403138595,1769189445670,-15809.0176423,0.00018,2]
[403138596,1769189445682,-1322.500002,0.00018,2]
[403138597,1769189445694,-6756.48853091,0.00018,2]
[403138598,1769189445832,-8506.47685352,0.00018,2]
[403138599,1769189445843,-908.22440825,0.00018,2]
[403138600,1769189445917,-1814.52151873,0.00018,2]
[403138601,1769189445928,-2400.4530701,0.00018,2]
[403138635,1769189738934,-1200.0,0.00014771,2]
[403138636,1769189874864,212.06874841,0.00014672,2]
[403138638,1769189880987,212.0687484,0.00014771,2]
[403138666,1769189900775,1154.0,0.00014771,2]
[403138667,1769189941285,300.0,0.00014771,2]
[403138668,1769189977888,770.63238159,0.00014755,2]
[403138669,1769189977914,366.00130068,0.00014755,2]
[403138670,1769189978558,173.81079984,0.00014673,2]
[403138671,1769189978584,263.80052717,0.00014673,2]
[403138673,1769190136003,500.0,0.000176,30]
[403138674,1769190136065,500.0,0.000176,30]
[403138675,1769190137038,500.0,0.00015487,10]
[403138676,1769190137142,925.34817968,0.00015487,10]
[403138677,1769190146469,500.0,0.000176,30]
[403138678,1769190146931,500.0,0.000176,30]
[403138679,1769190147539,712.80140198,0.00015487,10]
[403138680,1769190244519,524.99,0.0001137,2]
[403138681,1769190244788,524.99,0.0001137,2]
[403138682,1769190245045,524.99,0.0001137,2]
[403138683,1769190245301,524.99,0.0001137,2]
[403138684,1769190479770,-317.242118,0.00014233,2]
[403138685,1769190479794,-157.99542452,0.00014233,2]
[403138686,1769190479819,-500.0,0.00014305,2]
[403138687,1769190479847,-328.68188319,0.00014392,2]
[403138688,1769190479873,-1905.683,0.00014478,2]
[403138689,1769190479897,-195.1,0.00014478,2]
[403138690,1769190479920,-157.99542452,0.00014478,2]
[403138691,1769190479944,-620.0,0.00014672,2]
[403138692,1769190479969,-1200.0,0.00014672,2]
[403138693,1769190479993,-300.0,0.00014672,2]
[403138694,1769190480022,-150.01445065,0.00014673,2]
[403138695,1769190480047,-5142.7566,0.00014673,2]
[403138696,1769190480070,-237.0033,0.00014673,2]
[403138697,1769190480095,-2500.0,0.00014673,2]
[403138698,1769190480120,-150.0,0.00014763,2]
[403138699,1769190480148,-500.0,0.00014764,2]
[403138700,1769190480177,-500.0,0.00014764,2]
[403138701,1769190480206,-500.0,0.00014764,2]
[403138702,1769190480232,-500.0,0.00014764,2]
[403138703,1769190480263,-500.0,0.00014764,2]
[403138704,1769190480290,-330.92569005,0.00014764,2]
[403138705,1769190480316,-500.0,0.00014764,2]
[403138706,1769190480342,-500.0,0.00014764,2]
[403138707,1769190480369,-500.0,0.00014764,2]
[403138708,1769190480395,-500.0,0.00014764,2]
[403138709,1769190480421,-500.0,0.00014764,2]
[403138710,1769190480447,-500.0,0.00014764,2]
[403138711,1769190480477,-500.0,0.00014764,2]
[403138712,1769190480508,-500.0,0.00014764,2]
[403138713,1769190480537,-500.0,0.00014764,2]
[403138714,1769190480563,-500.0,0.00014764,2]
[403138715,1769190480590,-500.0,0.00014764,2]
[403138716,1769190480619,-500.0,0.00014764,2]
[403138717,1769190480644,-500.0,0.00014764,2]
[403138718,1769190480866,-500.0,0.00014764,2]
[403138719,1769190480893,-500.0,0.00014764,2]
[403138720,1769190480919,-500.0,0.00014764,2]
[403138721,1769190480946,-500.0,0.00014764,2]
[403138722,1769190480972,-500.0,0.00014764,2]
[403138723,1769190480999,-500.0,0.00014764,2]
[403138724,1769190481027,-500.0,0.00014764,2]
[403138725,1769190481052,-500.0,0.00014764,2]
[403138726,1769190481078,-500.0,0.00014764,2]
[403138727,1769190481113,-500.0,0.00014764,2]
[403138728,1769190481142,-500.0,0.00014764,2]
[403138729,1769190481168,-500.0,0.00014764,2]
[403138730,1769190481195,-500.0,0.00014764,2]
[403138731,1769190481222,-500.0,0.00014764,2]
[403138732,1769190481249,-500.0,0.00014764,2]
[403138733,1769190481277,-500.0,0.00014764,2]
[403138734,1769190481304,-350.0,0.00014764,2]
[403138735,1769190481330,-500.0,0.00014764,2]
[403138736,1769190481357,-500.0,0.00014764,2]
[403138737,1769190481381,-200.0,0.00014765,2]
[403138738,1769190481406,-151.0,0.00014765,2]
[403138739,1769190481431,-151.0,0.00014765,2]
[403138740,1769190481458,-151.0,0.00014765,2]
[403138741,1769190481482,-151.0,0.00014765,2]
[403138742,1769190481508,-151.0,0.00014765,2]
[403138743,1769190481537,-151.0,0.00014765,2]
[403138744,1769190481563,-151.0,0.00014765,2]
[403138745,1769190481588,-151.0,0.00014765,2]
[403138746,1769190481617,-500.0,0.00014765,2]
[403138747,1769190481644,-151.0,0.00014765,2]
[403138748,1769190481669,-500.0,0.00014765,2]
[403138749,1769190481699,-500.0,0.00014765,2]
[403138750,1769190481724,-500.0,0.00014765,2]
[403138751,1769190481749,-151.0,0.00014765,2]
[403138752,1769190481779,-500.0,0.00014765,2]
[403138753,1769190481805,-151.0,0.00014765,2]
[403138754,1769190481831,-500.0,0.00014765,2]
[403138755,1769190481857,-151.0,0.00014765,2]
[403138756,1769190481884,-500.0,0.00014765,2]
[403138757,1769190481909,-200.0,0.00014765,2]
[403138758,1769190481934,-151.0,0.00014765,2]
[403138759,1769190481964,-500.0,0.00014765,2]
[403138760,1769190481994,-151.0,0.00014765,2]
[403138761,1769190482020,-500.0,0.00014765,2]
[403138762,1769190482046,-151.0,0.00014765,2]
[403138763,1769190482073,-165.59988567,0.00014765,2]
[403138764,1769190482099,-151.0,0.00014765,2]
[403138765,1769190482126,-151.0,0.00014765,2]
[403138766,1769190482153,-151.0,0.00014765,2]
[403138767,1769190482179,-500.0,0.00014765,2]
[403138768,1769190482204,-151.0,0.00014765,2]
[403138769,1769190482229,-500.0,0.00014765,2]
[403138770,1769190482254,-500.0,0.00014765,2]
[403138771,1769190482279,-151.0,0.00014765,2]
[403138772,1769190482305,-500.0,0.00014765,2]
[403138773,1769190482331,-500.0,0.00014765,2]
[403138774,1769190482356,-500.0,0.00014765,2]
[403138775,1769190482393,-500.0,0.00014765,2]
[403138776,1769190482422,-500.0,0.00014765,2]
[403138777,1769190482448,-500.0,0.00014765,2]
[403138778,1769190482477,-500.0,0.00014765,2]
[403138779,1769190482503,-204.89218859,0.00014765,2]
[403138780,1769190482529,-200.0,0.00014765,2]
[403138781,1769190482556,-151.0,0.00014765,2]
[403138782,1769190482583,-151.0,0.00014765,2]
[403138783,1769190482609,-151.0,0.00014765,2]
[403138784,1769190482638,-151.0,0.00014765,2]
[403138785,1769190482663,-151.0,0.00014765,2]
[403138786,1769190482688,-151.0,0.00014765,2]
[403138787,1769190482714,-151.0,0.00014765,2]
[403138788,1769190482739,-151.0,0.00014765,2]
[403138789,1769190482763,-151.0,0.00014765,2]
[403138790,1769190482788,-151.0,0.00014765,2]
[403138791,1769190482812,-151.0,0.00014765,2]
[403138792,1769190482837,-398.16215466,0.00014765,2]
[403138793,1769190482864,-1877.84489555,0.00014773,2]
[403138794,1769190482890,-500.0,0.00014773,2]
[403138795,1769190482915,-500.0,0.00014773,2]
[403138796,1769190482941,-589.03869133,0.00014773,2]
[403138797,1769190482967,-25734.08245089,0.00014773,2]
[403138798,1769190482993,-500.0,0.00014773,2]
[403138799,1769190483023,-519.05995183,0.00014773,2]
[403138800,1769190483463,-500.0,0.00014773,2]
[403138801,1769190483489,-500.0,0.00014773,2]
[403138802,1769190483518,-500.0,0.00014773,2]
[403138803,1769190483544,-500.0,0.00014773,2]
[403138804,1769190483570,-448.17762938,0.00014773,2]
[403138805,1769190483595,-500.0,0.00014773,2]
[403138806,1769190483621,-500.0,0.00014773,2]
[403138807,1769190483647,-500.0,0.00014773,2]
[403138808,1769190483672,-500.0,0.00014773,2]
[403138809,1769190483698,-500.0,0.00014773,2]
[403138810,1769190483722,-500.0,0.00014773,2]
[403138811,1769190483752,-500.0,0.00014773,2]
[403138812,1769190483778,-226.94622895,0.00014773,2]
[403138813,1769190483803,-150.99979233,0.00014773,2]
[403138814,1769190483830,-5960.79823989,0.00014773,2]
[403138822,1769190631712,-246.80477319,0.00014573,2]
[403138823,1769190631722,-300.0,0.00014663,2]
[403138824,1769190631732,-1200.0,0.00014663,2]
[403138825,1769190631742,-5453.18351949,0.00014664,2]
[403138826,1769190631754,-10870.1667471,0.00014664,2]
[403138827,1769190631765,-1000.0,0.00014664,2]
[403138828,1769190631777,-789.525,0.00014664,2]
[403138829,1769190631789,-698.53479334,0.00014664,2]
[403138830,1769190631800,-815.30584082,0.00014664,2]
[403138831,1769190631813,-273.63724884,0.00014664,2]
[403138832,1769190631833,-21230.17407283,0.00014664,2]
[403138833,1769190631861,-5779.94947372,0.00014664,2]
[403138834,1769190631873,-261781.77771171,0.00014664,2]
[403138894,1769190637639,-675.01067611,0.00014664,2]
[403138895,1769190637697,-1519.03958017,0.00014664,2]
[403138896,1769190637708,-338.06462654,0.00014664,2]
[403138897,1769190637718,-474.71000045,0.00014664,2]
[403138898,1769190637730,-1329.5838707,0.00014664,2]
[403138899,1769190637766,-686971.33683818,0.00014664,2]
[403138900,1769190637775,-7132.2682,0.00014673,2]
[403138901,1769190637784,-199.30001382,0.00014718,2]
[403138902,1769190637793,-799.03,0.00014762,2]
[403138903,1769190637803,-500.0,0.00014763,2]
[403138904,1769190637812,-500.0,0.00014763,2]
[403138905,1769190637821,-500.0,0.00014763,2]
[403138906,1769190637831,-500.0,0.00014763,2]
[403138907,1769190637841,-500.0,0.00014763,2]
[403138908,1769190637851,-500.0,0.00014763,2]
[403138909,1769190637862,-500.0,0.00014763,2]
[403138910,1769190637871,-500.0,0.00014763,2]
[403138911,1769190637880,-500.0,0.00014763,2]
[403138912,1769190637891,-500.0,0.00014763,2]
[403138913,1769190637900,-500.0,0.00014763,2]
[403138914,1769190637910,-500.0,0.00014763,2]
[403138915,1769190637919,-500.0,0.00014763,2]
[403138916,1769190637928,-500.0,0.00014763,2]
[403138917,1769190637937,-500.0,0.00014763,2]
[403138918,1769190637946,-500.0,0.00014763,2]
[403138919,1769190637959,-500.0,0.00014763,2]
[403138920,1769190637968,-500.0,0.00014763,2]
[403138921,1769190637977,-500.0,0.00014763,2]
[403138922,1769190637987,-500.0,0.00014763,2]
[403138923,1769190637996,-500.0,0.00014763,2]
[403138924,1769190638005,-500.0,0.00014763,2]
[403138925,1769190638015,-500.0,0.00014763,2]
[403138926,1769190638024,-500.0,0.00014763,2]
[403138927,1769190638034,-500.0,0.00014763,2]
[403138928,1769190638044,-500.0,0.00014763,2]
[403138930,1769190638053,-500.0,0.00014763,2]
[403138932,1769190638064,-500.0,0.00014763,2]
[403138934,1769190638074,-500.0,0.00014763,2]
[403138936,1769190638082,-500.0,0.00014763,2]
[403138937,1769190638092,-500.0,0.00014764,2]
[403138939,1769190638101,-500.0,0.00014764,2]
[403138941,1769190638110,-500.0,0.00014764,2]
[403138943,1769190638119,-500.0,0.00014764,2]
[403138945,1769190638129,-500.0,0.00014764,2]
[403138947,1769190638138,-500.0,0.00014764,2]
[403138949,1769190638147,-500.0,0.00014764,2]
[403138951,1769190638156,-500.0,0.00014764,2]
[403138953,1769190638166,-500.0,0.00014764,2]
[403138955,1769190638175,-500.0,0.00014764,2]
[403138957,1769190638185,-500.0,0.00014764,2]
[403138958,1769190638195,-500.0,0.00014764,2]
[403138959,1769190638204,-500.0,0.00014764,2]
[403138960,1769190638214,-36596.0542481,0.00014772,2]
[403138961,1769190638225,-354.33031542,0.00014772,2]
[403138962,1769190638235,-500.0,0.00014773,2]
[403138963,1769190638244,-500.0,0.00014773,2]
[403138964,1769190638253,-500.0,0.00014773,2]
[403138965,1769190638262,-500.0,0.00014773,2]
[403138966,1769190638271,-516.06102,0.00014773,2]
[403138967,1769190638281,-2477.26316011,0.00014773,2]
[403138968,1769190638291,-170.89239415,0.00014818,2]
[403138969,1769190638300,-171.06328654,0.00014818,2]
[403138970,1769190638311,-500.0,0.00014873,2]
[403138971,1769190638320,-500.0,0.00014873,2]
[403138972,1769190638330,-500.0,0.00014873,2]
[403138973,1769190638339,-500.0,0.00014873,2]
[403138974,1769190638348,-500.0,0.00014873,2]
[403138975,1769190638358,-500.0,0.00014873,2]
[403138976,1769190638367,-500.0,0.00014873,2]
[403138977,1769190638376,-150.00007808,0.00014958,2]
[403138978,1769190638385,-799.03,0.00015036,2]
[403138979,1769190638395,-500.0,0.00015072,2]
[403138980,1769190638403,-25734.08245087,0.0001512,2]
[403138981,1769190638413,-799.03,0.0001531,2]
[403138982,1769190638422,-200.0,0.00015313,2]
[403138983,1769190638431,-500.0,0.00015313,2]
[403138984,1769190638441,-200.0,0.00015313,2]
[403138985,1769190638450,-25734.08245087,0.00015468,2]
[403138986,1769190638460,-799.03,0.00015584,2]
[403138987,1769190638469,-246.80477319,0.00015593,2]
[403138988,1769190638478,-151.0,0.00015612,2]
[403138989,1769190638488,-151.0,0.00015625,2]
[403138990,1769190638497,-151.0,0.0001565,2]
[403138991,1769190638509,-509.8077318,0.00015656,2]
[403138992,1769190638519,-250.0,0.00015656,2]
[403138993,1769190638528,-151.0,0.00015686,2]
[403138994,1769190638539,-600.0,0.00015736,2]
[403138995,1769190638549,-25734.08245087,0.00015815,2]
[403138996,1769190638558,-250.0,0.00015846,2]
[403138997,1769190638567,-195.0,0.00015846,2]
[403138998,1769190638577,-799.03,0.00015858,2]
[403138999,1769190638586,-205.06792171,0.00015861,2]
[403139000,1769190638595,-500.0,0.00015861,2]
[403139001,1769190638604,-300.0,0.0001603,2]
[403139002,1769190638613,-420.0,0.00016053,2]
[403139003,1769190638622,-500.0,0.00016115,2]
[403139004,1769190638632,-9999.99,0.00016116,2]
[403139005,1769190638641,-1551.13,0.00016116,2]
[403139006,1769190638651,-1537.13,0.00016116,2]
[403139007,1769190638659,-1180.93,0.00016116,2]
[403139008,1769190638669,-150.99,0.00016116,2]
[403139009,1769190638679,-999.99,0.00016116,2]
[403139010,1769190638688,-150.99,0.00016116,2]
[403139011,1769190638697,-9999.99,0.00016116,2]
[403139012,1769190638707,-1723.06,0.00016116,2]
[403139013,1769190638716,-9999.99,0.00016116,2]
[403139014,1769190638725,-3472.87,0.00016116,2]
[403139015,1769190638735,-297.9,0.00016116,2]
[403139016,1769190638745,-7111.8,0.00016116,2]
[403139017,1769190638754,-499.99,0.00016116,2]
[403139018,1769190638764,-4672.25,0.00016116,2]
[403139019,1769190638773,-348.47,0.00016116,2]
[403139020,1769190638782,-84503.49,0.00016116,2]
[403139021,1769190638791,-5243.59,0.00016116,2]
[403139022,1769190638800,-9999.99,0.00016116,2]
[403139023,1769190638810,-2538.16,0.00016116,2]
[403139024,1769190638819,-299.4,0.00016116,2]
[403139025,1769190638829,-1143.87,0.00016116,2]
[403139026,1769190638839,-770.0,0.00016129,2]
[403139027,1769190638849,-195.0,0.0001613,2]
[403139028,1769190638860,-193.0,0.0001613,2]
[403139029,1769190638869,-5000.0,0.0001613,2]
[403139030,1769190638879,-600.0,0.0001613,2]
[403139031,1769190638889,-557.97959331,0.0001613,2]
[403139032,1769190638898,-195.0,0.0001613,2]
[403139033,1769190638908,-799.03,0.00016132,2]
[403139034,1769190638918,-25734.08245087,0.00016163,2]
[403139035,1769190638928,-250.0,0.0001624,2]
[403139036,1769190638938,-150.00007808,0.00016338,2]
[403139037,1769190638948,-799.03,0.00016406,2]
[403139038,1769190638957,-500.0,0.00016409,2]
[403139039,1769190638967,-500.0,0.00016411,2]
[403139040,1769190638977,-1002.0,0.00016411,2]
[403139041,1769190638986,-1500.0,0.00016438,2]
[403139042,1769190638996,-1500.0,0.00016438,2]
[403139043,1769190639005,-800.0,0.00016438,2]
[403139044,1769190639015,-150.0,0.00016438,2]
[403139045,1769190639025,-151.0,0.00016438,2]
[403139046,1769190639034,-150.0,0.00016466,2]
[403139047,1769190639044,-25734.08245087,0.0001651,2]